[Event "Titled Tuesday Blitz June 20 Late 2023"]
[White "Turner, Max N"]
[Black "Daggupati, Balaji"]
[WhiteFideId "447722"]
[BlackFideId "2090759"]
[WhiteElo "2157"]
[BlackElo "2695"]
[Result "1-0"]
[Round "5"]
[TimeControl "180+2"]
[Date "2023.06.20"]
[WhiteClock "0:00:21"]
[BlackClock "0:00:45"]
[Board "79"]

1. d4 {[%clk 0:03:00]}  d5 {[%clk 0:03:00]} 2. c4 {[%clk 0:03:01]}  dxc4 {[%clk 0:03:01]} 3. e3 {[%clk 0:03:01]}  Nf6 {[%clk 0:03:00]} 4. Bxc4 {[%clk 0:03:02]}  e6 {[%clk 0:03:01]} 5. Nf3 {[%clk 0:03:03]}  a6 {[%clk 0:03:01]} 6. O-O {[%clk 0:03:03]}  Be7 {[%clk 0:03:02]} 7. a4 {[%clk 0:03:01]}  O-O {[%clk 0:03:02]} 8. Nc3 {[%clk 0:03:01]}  c5 {[%clk 0:03:03]} 9. d5 {[%clk 0:03:00]}  exd5 {[%clk 0:02:56]} 10. Nxd5 {[%clk 0:03:01]}  Nxd5 {[%clk 0:02:56]} 11. Qxd5 {[%clk 0:03:02]}  Nc6 {[%clk 0:02:52]} 12. e4 {[%clk 0:02:59]}  Bg4 {[%clk 0:02:51]} 13. Be3 {[%clk 0:02:45]}  Qb6 {[%clk 0:02:24]} 14. Qd2 {[%clk 0:02:31]}  Bxf3 {[%clk 0:02:12]} 15. gxf3 {[%clk 0:02:31]}  Rad8 {[%clk 0:02:12]} 16. Qe2 {[%clk 0:02:29]}  Bf6 {[%clk 0:02:07]} 17. Rab1 {[%clk 0:02:28]}  Nd4 {[%clk 0:02:06]} 18. Bxd4 {[%clk 0:02:28]}  Rxd4 {[%clk 0:02:06]} 19. b3 {[%clk 0:02:19]}  Be5 {[%clk 0:02:05]} 20. f4 {[%clk 0:02:04]}  Bxf4 {[%clk 0:02:00]} 21. Qf3 {[%clk 0:02:05]}  Qh6 {[%clk 0:01:58]} 22. h3 {[%clk 0:02:01]}  Qg6+ {[%clk 0:01:45]} 23. Kh1 {[%clk 0:02:01]}  Qxe4 {[%clk 0:01:46]} 24. Qxe4 {[%clk 0:02:01]}  Rxe4 {[%clk 0:01:47]} 25. Bd5 {[%clk 0:02:00]}  Rb4 {[%clk 0:01:46]} 26. Rfe1 {[%clk 0:02:00]}  Rd8 {[%clk 0:01:43]} 27. Re7 {[%clk 0:01:59]}  h6 {[%clk 0:01:38]} 28. Rd1 {[%clk 0:01:09]}  Rd4 {[%clk 0:01:20]} 29. Bxf7+ {[%clk 0:00:58]}  Kf8 {[%clk 0:01:20]} 30. Rxd4 {[%clk 0:00:57]}  cxd4 {[%clk 0:01:20]} 31. Rxb7 {[%clk 0:00:55]}  d3 {[%clk 0:01:15]} 32. Bh5 {[%clk 0:00:55]}  d2 {[%clk 0:01:16]} 33. Rf7+ {[%clk 0:00:55]}  Kg8 {[%clk 0:01:15]} 34. Rxf4 {[%clk 0:00:56]}  d1=Q+ {[%clk 0:00:51]} 35. Bxd1 {[%clk 0:00:56]}  Rxd1+ {[%clk 0:00:51]} 36. Kg2 {[%clk 0:00:57]}  Rb1 {[%clk 0:00:49]} 37. Rb4 {[%clk 0:00:57]}  Kf7 {[%clk 0:00:45]} 38. Rb6 {[%clk 0:00:57]}  Rb2 {[%clk 0:00:41]} 39. Kf3 {[%clk 0:00:54]}  a5 {[%clk 0:00:41]} 40. Rb5 {[%clk 0:00:51]}  Kf6 {[%clk 0:00:41]} 41. Ke3 {[%clk 0:00:51]}  g5 {[%clk 0:00:40]} 42. Rb6+ {[%clk 0:00:50]}  Kf5 {[%clk 0:00:40]} 43. f3 {[%clk 0:00:47]}  h5 {[%clk 0:00:39]} 44. Rb5+ {[%clk 0:00:47]}  Kf6 {[%clk 0:00:39]} 45. Ke4 {[%clk 0:00:48]}  Re2+ {[%clk 0:00:36]} 46. Kd3 {[%clk 0:00:48]}  Rf2 {[%clk 0:00:36]} 47. Ke3 {[%clk 0:00:45]}  Rb2 {[%clk 0:00:36]} 48. f4 {[%clk 0:00:44]}  g4 {[%clk 0:00:33]} 49. Rb6+ {[%clk 0:00:38]}  Kf5 {[%clk 0:00:33]} 50. Rb5+ {[%clk 0:00:34]}  Kf6 {[%clk 0:00:33]} 51. hxg4 {[%clk 0:00:34]}  hxg4 {[%clk 0:00:33]} 52. Rxa5 {[%clk 0:00:16]}  Rxb3+ {[%clk 0:00:33]} 53. Kf2 {[%clk 0:00:16]}  Rf3+ {[%clk 0:00:33]} 54. Kg2 {[%clk 0:00:15]}  Ra3 {[%clk 0:00:33]} 55. f5 {[%clk 0:00:13]}  Kg5 {[%clk 0:00:32]} 56. Rb5 {[%clk 0:00:10]}  Rxa4 {[%clk 0:00:32]} 57. f6+ {[%clk 0:00:10]}  Kxf6 {[%clk 0:00:32]} 58. Kg3 {[%clk 0:00:11]}  Kg6 {[%clk 0:00:33]} 59. Rc5 {[%clk 0:00:10]}  Re4 {[%clk 0:00:32]} 60. Rb5 {[%clk 0:00:11]}  Kf6 {[%clk 0:00:32]} 61. Rc5 {[%clk 0:00:11]}  Rd4 {[%clk 0:00:30]} 62. Rb5 {[%clk 0:00:11]}  Rc4 {[%clk 0:00:30]} 63. Ra5 {[%clk 0:00:11]}  Rb4 {[%clk 0:00:31]} 64. Rc5 {[%clk 0:00:11]}  Rb1 {[%clk 0:00:26]} 65. Kxg4 {[%clk 0:00:11]}  Rg1+ {[%clk 0:00:27]} 66. Kf3 {[%clk 0:00:11]}  Rh1 {[%clk 0:00:28]} 67. Rc4 {[%clk 0:00:11]}  Ke5 {[%clk 0:00:28]} 68. Re4+ {[%clk 0:00:11]}  Kd5 {[%clk 0:00:29]} 69. Re2 {[%clk 0:00:11]}  Rh3+ {[%clk 0:00:29]} 70. Kg2 {[%clk 0:00:11]}  Ra3 {[%clk 0:00:29]} 71. Rf2 {[%clk 0:00:11]}  Ke4 {[%clk 0:00:29]} 72. Re2+ {[%clk 0:00:12]}  Kf4 {[%clk 0:00:29]} 73. Kf2 {[%clk 0:00:12]}  Rh3 {[%clk 0:00:29]} 74. Kg2 {[%clk 0:00:12]}  Rg3+ {[%clk 0:00:29]} 75. Kh2 {[%clk 0:00:13]}  Rg8 {[%clk 0:00:29]} 76. Rf2+ {[%clk 0:00:13]}  Ke3 {[%clk 0:00:29]} 77. Rg2 {[%clk 0:00:13]}  Rh8+ {[%clk 0:00:29]} 78. Kg3 {[%clk 0:00:14]}  Rf8 {[%clk 0:00:29]} 79. Ra2 {[%clk 0:00:12]}  Rg8+ {[%clk 0:00:29]} 80. Kh3 {[%clk 0:00:13]}  Kf4 {[%clk 0:00:29]} 81. Ra4+ {[%clk 0:00:13]}  Kf3 {[%clk 0:00:30]} 82. Ra3+ {[%clk 0:00:14]}  Kf2 {[%clk 0:00:30]} 83. Ra2+ {[%clk 0:00:15]}  Ke3 {[%clk 0:00:31]} 84. Ra3+ {[%clk 0:00:15]}  Kf4 {[%clk 0:00:32]} 85. Ra4+ {[%clk 0:00:16]}  Ke5 {[%clk 0:00:33]} 86. Ra5+ {[%clk 0:00:16]}  Kd4 {[%clk 0:00:34]} 87. Ra4+ {[%clk 0:00:17]}  Kc3 {[%clk 0:00:35]} 88. Rg4 {[%clk 0:00:17]}  Rh8+ {[%clk 0:00:35]} 89. Rh4 {[%clk 0:00:17]}  Kd3 {[%clk 0:00:36]} 90. Rxh8 {[%clk 0:00:17]}  Ke4 {[%clk 0:00:35]} 91. Rf8 {[%clk 0:00:17]}  Ke5 {[%clk 0:00:36]} 92. Kg4 {[%clk 0:00:18]}  Ke6 {[%clk 0:00:37]} 93. Rf5 {[%clk 0:00:18]}  Ke7 {[%clk 0:00:38]} 94. Kg5 {[%clk 0:00:18]}  Ke6 {[%clk 0:00:39]} 95. Kf4 {[%clk 0:00:19]}  Kd6 {[%clk 0:00:40]} 96. Re5 {[%clk 0:00:19]}  Kc6 {[%clk 0:00:40]} 97. Ke4 {[%clk 0:00:20]}  Kd6 {[%clk 0:00:41]} 98. Rd5+ {[%clk 0:00:20]}  Ke6 {[%clk 0:00:42]} 99. Rd4 {[%clk 0:00:20]}  Kf6 {[%clk 0:00:42]} 100. Rd6+ {[%clk 0:00:19]}  Kg5 {[%clk 0:00:42]} 101. Re6 {[%clk 0:00:20]}  Kg4 {[%clk 0:00:42]} 102. Rg6+ {[%clk 0:00:21]}  Kh5 {[%clk 0:00:43]} 103. Kf5 {[%clk 0:00:21]}  Kh4 {[%clk 0:00:44]} 104. Rg5 {[%clk 0:00:21]}  Kh3 {[%clk 0:00:45]} 105. Kf4 {[%clk 0:00:21]} 1-0


[Site "https://www.chess.com"]

[Event "Titled Tuesday Blitz June 20 Late 2023"]
[White "Rastbod, Ali"]
[Black "Rios Escobar, Adan"]
[WhiteFideId "12567477"]
[BlackFideId "3403645"]
[WhiteElo "2281"]
[BlackElo "2474"]
[Result "1-0"]
[Round "5"]
[TimeControl "180+2"]
[Date "2023.06.20"]
[WhiteClock "0:00:06"]
[BlackClock "0:00:00"]
[Board "82"]

1. Nf3 {[%clk 0:02:59]}  Nf6 {[%clk 0:03:00]} 2. b3 {[%clk 0:02:58]}  d6 {[%clk 0:02:58]} 3. Bb2 {[%clk 0:02:58]}  e5 {[%clk 0:02:58]} 4. g3 {[%clk 0:02:58]}  c5 {[%clk 0:02:58]} 5. Bg2 {[%clk 0:02:58]}  Nc6 {[%clk 0:02:59]} 6. O-O {[%clk 0:02:58]}  g6 {[%clk 0:02:59]} 7. e3 {[%clk 0:02:57]}  Bg7 {[%clk 0:03:00]} 8. d4 {[%clk 0:02:57]}  cxd4 {[%clk 0:02:56]} 9. exd4 {[%clk 0:02:58]}  e4 {[%clk 0:02:57]} 10. Ng5 {[%clk 0:02:55]}  d5 {[%clk 0:02:54]} 11. f3 {[%clk 0:02:48]}  h6 {[%clk 0:02:47]} 12. Nxf7 {[%clk 0:02:37]}  Kxf7 {[%clk 0:02:48]} 13. fxe4 {[%clk 0:02:37]}  dxe4 {[%clk 0:02:45]} 14. d5 {[%clk 0:02:37]}  Ne7 {[%clk 0:02:36]} 15. c4 {[%clk 0:02:35]}  Rf8 {[%clk 0:02:31]} 16. Bxe4 {[%clk 0:02:28]}  Kg8 {[%clk 0:02:31]} 17. Bg2 {[%clk 0:02:27]}  Nf5 {[%clk 0:02:20]} 18. Qc1 {[%clk 0:02:23]}  Qb6+ {[%clk 0:02:15]} 19. c5 {[%clk 0:02:14]}  Qb4 {[%clk 0:02:10]} 20. Rf4 {[%clk 0:01:48]}  Qb5 {[%clk 0:01:56]} 21. Na3 {[%clk 0:01:35]}  Qd3 {[%clk 0:01:47]} 22. Qc4 {[%clk 0:01:09]}  Qxc4 {[%clk 0:01:24]} 23. Nxc4 {[%clk 0:01:08]}  Nh5 {[%clk 0:01:17]} 24. Rf2 {[%clk 0:00:54]}  Bxb2 {[%clk 0:01:00]} 25. Rxb2 {[%clk 0:00:55]}  Nd4 {[%clk 0:00:53]} 26. d6 {[%clk 0:00:40]}  Nf3+ {[%clk 0:00:43]} 27. Kh1 {[%clk 0:00:38]}  Bg4 {[%clk 0:00:33]} 28. b4 {[%clk 0:00:16]}  Rae8 {[%clk 0:00:28]} 29. Na5 {[%clk 0:00:14]}  b6 {[%clk 0:00:18]} 30. Nc6 {[%clk 0:00:13]}  Ne1 {[%clk 0:00:07]} 31. Ne7+ {[%clk 0:00:11]}  Kf7 {[%clk 0:00:04]} 32. Rxe1 {[%clk 0:00:09]}  bxc5 {[%clk 0:00:04]} 33. bxc5 {[%clk 0:00:09]}  Nf6 {[%clk 0:00:05]} 34. Rf2 {[%clk 0:00:08]}  Kg7 {[%clk 0:00:04]} 35. Ref1 {[%clk 0:00:08]}  Bd7 {[%clk 0:00:03]} 36. c6 {[%clk 0:00:07]}  Be6 {[%clk 0:00:03]} 37. c7 {[%clk 0:00:05]}  Bd7 {[%clk 0:00:03]} 38. Kg1 {[%clk 0:00:05]}  h5 {[%clk 0:00:02]} 39. h3 {[%clk 0:00:06]}  a5 {[%clk 0:00:00]} 40. Bb7 {[%clk 0:00:06]} 1-0


[Site "https://www.chess.com"]

[Event "Titled Tuesday Blitz June 20 Late 2023"]
[White "Mattheii"]
[Black "Martins, Bruno Andre Leite"]
[BlackFideId "1942255"]
[WhiteElo "2474"]
[BlackElo "2241"]
[Result "1-0"]
[Round "5"]
[TimeControl "180+2"]
[Date "2023.06.20"]
[WhiteClock "0:00:15"]
[BlackClock "0:00:01"]
[Board "83"]

1. d4 {[%clk 0:03:00]}  Nf6 {[%clk 0:02:52]} 2. c4 {[%clk 0:03:01]}  g6 {[%clk 0:02:52]} 3. Nc3 {[%clk 0:03:01]}  Bg7 {[%clk 0:02:53]} 4. e4 {[%clk 0:03:01]}  d6 {[%clk 0:02:53]} 5. h3 {[%clk 0:03:02]}  O-O {[%clk 0:02:54]} 6. Bg5 {[%clk 0:03:02]}  c5 {[%clk 0:02:54]} 7. d5 {[%clk 0:03:02]}  e6 {[%clk 0:02:44]} 8. Bd3 {[%clk 0:03:01]}  exd5 {[%clk 0:02:44]} 9. exd5 {[%clk 0:03:02]}  h6 {[%clk 0:02:42]} 10. Be3 {[%clk 0:02:54]}  Re8 {[%clk 0:02:38]} 11. Nf3 {[%clk 0:02:53]}  Rxe3+ {[%clk 0:02:20]} 12. fxe3 {[%clk 0:02:54]}  Qe7 {[%clk 0:02:20]} 13. O-O {[%clk 0:02:31]}  Nbd7 {[%clk 0:02:06]} 14. Qd2 {[%clk 0:02:12]}  Ne5 {[%clk 0:01:45]} 15. Nxe5 {[%clk 0:02:10]}  Qxe5 {[%clk 0:01:46]} 16. Rf3 {[%clk 0:01:36]}  Bd7 {[%clk 0:01:24]} 17. Raf1 {[%clk 0:01:36]}  Be8 {[%clk 0:01:17]} 18. Qf2 {[%clk 0:01:25]}  Nh7 {[%clk 0:01:15]} 19. Rxf7 {[%clk 0:00:59]}  Ng5 {[%clk 0:00:54]} 20. Rf4 {[%clk 0:00:44]}  b5 {[%clk 0:00:39]} 21. cxb5 {[%clk 0:00:23]}  Rb8 {[%clk 0:00:36]} 22. h4 {[%clk 0:00:23]}  Nh7 {[%clk 0:00:36]} 23. Re4 {[%clk 0:00:22]}  Qf6 {[%clk 0:00:26]} 24. Re6 {[%clk 0:00:17]}  Qxf2+ {[%clk 0:00:22]} 25. Rxf2 {[%clk 0:00:18]}  Be5 {[%clk 0:00:20]} 26. Bxg6 {[%clk 0:00:17]}  Bd7 {[%clk 0:00:07]} 27. Bxh7+ {[%clk 0:00:17]}  Kxh7 {[%clk 0:00:04]} 28. Re7+ {[%clk 0:00:17]}  Kg6 {[%clk 0:00:04]} 29. Rxd7 {[%clk 0:00:17]}  Kh5 {[%clk 0:00:03]} 30. a4 {[%clk 0:00:15]}  Rg8 {[%clk 0:00:02]} 31. Ne4 {[%clk 0:00:14]}  Re8 {[%clk 0:00:02]} 32. Nf6+ {[%clk 0:00:14]}  Bxf6 {[%clk 0:00:02]} 33. Rxf6 {[%clk 0:00:15]}  Rxe3 {[%clk 0:00:03]} 34. Rf3 {[%clk 0:00:15]}  Re2 {[%clk 0:00:03]} 35. Rf2 {[%clk 0:00:15]}  Re1+ {[%clk 0:00:02]} 36. Kh2 {[%clk 0:00:15]}  Kxh4 {[%clk 0:00:02]} 37. Rxd6 {[%clk 0:00:15]}  h5 {[%clk 0:00:01]} 38. Rg6 {[%clk 0:00:15]}  Re4 {[%clk 0:00:01]} 39. g3# {[%clk 0:00:15]} 1-0


[Site "https://www.chess.com"]

[Event "Titled Tuesday Blitz June 20 Late 2023"]
[White "Vlassov, Nikolai"]
[Black "Kaplan, Avi Harrison"]
[WhiteFideId "4103360"]
[BlackFideId "30934559"]
[WhiteElo "2324"]
[BlackElo "1983"]
[Result "0-1"]
[Round "5"]
[TimeControl "180+2"]
[Date "2023.06.20"]
[WhiteClock "0:00:00"]
[BlackClock "0:00:02"]
[Board "89"]

1. e4 {[%clk 0:03:00]}  b6 {[%clk 0:03:00]} 2. d4 {[%clk 0:03:00]}  Bb7 {[%clk 0:03:01]} 3. Bd3 {[%clk 0:03:00]}  f5 {[%clk 0:03:02]} 4. exf5 {[%clk 0:02:59]}  Bxg2 {[%clk 0:03:03]} 5. Qh5+ {[%clk 0:02:59]}  g6 {[%clk 0:03:03]} 6. fxg6 {[%clk 0:02:59]}  Bg7 {[%clk 0:03:04]} 7. gxh7+ {[%clk 0:02:56]}  Kf8 {[%clk 0:03:05]} 8. Nh3 {[%clk 0:02:48]}  Bxh1 {[%clk 0:03:03]} 9. Nf4 {[%clk 0:02:44]}  Nf6 {[%clk 0:02:42]} 10. Ng6+ {[%clk 0:02:40]}  Ke8 {[%clk 0:02:36]} 11. Nxh8+ {[%clk 0:02:38]}  Nxh5 {[%clk 0:02:34]} 12. Bg6+ {[%clk 0:02:37]}  Kf8 {[%clk 0:02:33]} 13. Nf7 {[%clk 0:02:37]}  Qe8 {[%clk 0:01:41]} 14. Bh6 {[%clk 0:02:34]}  Qxf7 {[%clk 0:01:42]} 15. h8=Q+ {[%clk 0:02:25]}  Qg8 {[%clk 0:01:40]} 16. Bxg7+ {[%clk 0:02:23]}  Nxg7 {[%clk 0:01:41]} 17. Qh6 {[%clk 0:02:10]}  Qe6+ {[%clk 0:01:26]} 18. Kf1 {[%clk 0:02:05]}  Nc6 {[%clk 0:00:56]} 19. c3 {[%clk 0:01:42]}  Bf3 {[%clk 0:00:49]} 20. Nd2 {[%clk 0:01:28]}  Be2+ {[%clk 0:00:41]} 21. Kg1 {[%clk 0:01:17]}  Bh5 {[%clk 0:00:24]} 22. Qh8+ {[%clk 0:00:54]}  Qg8 {[%clk 0:00:24]} 23. Qxg8+ {[%clk 0:00:54]}  Kxg8 {[%clk 0:00:24]} 24. Be4 {[%clk 0:00:54]}  Rf8 {[%clk 0:00:20]} 25. Re1 {[%clk 0:00:49]}  Nd8 {[%clk 0:00:18]} 26. d5 {[%clk 0:00:41]}  e6 {[%clk 0:00:17]} 27. c4 {[%clk 0:00:33]}  Ne8 {[%clk 0:00:17]} 28. dxe6 {[%clk 0:00:25]}  Nxe6 {[%clk 0:00:18]} 29. Bd5 {[%clk 0:00:25]}  Bf7 {[%clk 0:00:19]} 30. Ne4 {[%clk 0:00:25]}  c6 {[%clk 0:00:14]} 31. Bxe6 {[%clk 0:00:24]}  Bxe6 {[%clk 0:00:15]} 32. b3 {[%clk 0:00:24]}  Kg7 {[%clk 0:00:13]} 33. Kg2 {[%clk 0:00:21]}  Nf6 {[%clk 0:00:12]} 34. Ng5 {[%clk 0:00:20]}  Rg8 {[%clk 0:00:12]} 35. h4 {[%clk 0:00:17]}  Nh7 {[%clk 0:00:10]} 36. f4 {[%clk 0:00:16]}  Nxg5 {[%clk 0:00:10]} 37. hxg5 {[%clk 0:00:16]}  Kg6 {[%clk 0:00:10]} 38. Kf3 {[%clk 0:00:15]}  Rf8 {[%clk 0:00:09]} 39. Rh1 {[%clk 0:00:12]}  b5 {[%clk 0:00:04]} 40. Rh6+ {[%clk 0:00:11]}  Kg7 {[%clk 0:00:04]} 41. cxb5 {[%clk 0:00:11]}  cxb5 {[%clk 0:00:05]} 42. Ke4 {[%clk 0:00:11]}  a5 {[%clk 0:00:05]} 43. Ke5 {[%clk 0:00:10]}  Rf5+ {[%clk 0:00:04]} 44. Ke4 {[%clk 0:00:10]}  a4 {[%clk 0:00:04]} 45. bxa4 {[%clk 0:00:10]}  bxa4 {[%clk 0:00:05]} 46. a3 {[%clk 0:00:10]}  Rb5 {[%clk 0:00:05]} 47. Rf6 {[%clk 0:00:09]}  Rb1 {[%clk 0:00:01]} 48. f5 {[%clk 0:00:10]}  Re1+ {[%clk 0:00:02]} 49. Kf4 {[%clk 0:00:09]}  Rf1+ {[%clk 0:00:02]} 50. Ke5 {[%clk 0:00:10]}  Bf7 {[%clk 0:00:02]} 51. Ra6 {[%clk 0:00:06]}  Bb3 {[%clk 0:00:01]} 52. Ra7 {[%clk 0:00:00]}  Rd1 {[%clk 0:00:02]} 0-1


[Site "https://www.chess.com"]

[Event "Titled Tuesday Blitz June 20 Late 2023"]
[White "Bjelobrk, Igor"]
[Black "Fiedorek, Michal"]
[WhiteFideId "4300726"]
[BlackFideId "1199528"]
[WhiteElo "2319"]
[BlackElo "2135"]
[Result "1-0"]
[Round "5"]
[TimeControl "180+2"]
[Date "2023.06.20"]
[WhiteClock "0:01:14"]
[BlackClock "0:00:39"]
[Board "91"]

1. d4 {[%clk 0:02:59]}  d5 {[%clk 0:02:57]} 2. c4 {[%clk 0:02:58]}  e6 {[%clk 0:02:58]} 3. Nf3 {[%clk 0:02:58]}  Nf6 {[%clk 0:02:57]} 4. g3 {[%clk 0:02:56]}  Bb4+ {[%clk 0:02:57]} 5. Bd2 {[%clk 0:02:56]}  a5 {[%clk 0:02:56]} 6. Bg2 {[%clk 0:02:54]}  O-O {[%clk 0:02:56]} 7. Qc1 {[%clk 0:02:52]}  dxc4 {[%clk 0:02:54]} 8. Qxc4 {[%clk 0:02:42]}  Bxd2+ {[%clk 0:02:45]} 9. Nbxd2 {[%clk 0:02:41]}  Bd7 {[%clk 0:02:46]} 10. Ne5 {[%clk 0:02:36]}  c6 {[%clk 0:02:45]} 11. O-O {[%clk 0:02:33]}  Nd5 {[%clk 0:02:45]} 12. e3 {[%clk 0:02:32]}  Na6 {[%clk 0:02:42]} 13. Rfc1 {[%clk 0:02:31]}  f6 {[%clk 0:02:41]} 14. Nd3 {[%clk 0:02:29]}  Qe7 {[%clk 0:02:33]} 15. a3 {[%clk 0:02:27]}  Kh8 {[%clk 0:02:28]} 16. Ne4 {[%clk 0:02:21]}  Nb6 {[%clk 0:02:07]} 17. Qc2 {[%clk 0:02:19]}  e5 {[%clk 0:01:58]} 18. dxe5 {[%clk 0:02:17]}  fxe5 {[%clk 0:01:59]} 19. Qb3 {[%clk 0:02:09]}  Nd5 {[%clk 0:01:49]} 20. Nec5 {[%clk 0:01:52]}  Nxc5 {[%clk 0:01:47]} 21. Nxc5 {[%clk 0:01:53]}  Qf7 {[%clk 0:01:42]} 22. Rc2 {[%clk 0:01:49]}  Bc8 {[%clk 0:01:30]} 23. Rd1 {[%clk 0:01:40]}  Bg4 {[%clk 0:01:19]} 24. Rdd2 {[%clk 0:01:37]}  Qh5 {[%clk 0:01:01]} 25. Qxb7 {[%clk 0:01:30]}  Bf3 {[%clk 0:00:55]} 26. Bxf3 {[%clk 0:01:23]}  Qxf3 {[%clk 0:00:56]} 27. Qxc6 {[%clk 0:01:20]}  Rad8 {[%clk 0:00:39]} 28. Ne6 {[%clk 0:01:14]} 1-0


[Site "https://www.chess.com"]

[Event "Titled Tuesday Blitz June 20 Late 2023"]
[White "Janaszak, Dawid"]
[Black "Quiroga Jaquez, Angel Ivan"]
[WhiteFideId "1119206"]
[BlackFideId "5117801"]
[WhiteElo "2220"]
[BlackElo "2011"]
[Result "0-1"]
[Round "5"]
[TimeControl "180+2"]
[Date "2023.06.20"]
[WhiteClock "0:00:00"]
[BlackClock "0:00:14"]
[Board "92"]

1. e4 {[%clk 0:03:00]}  e5 {[%clk 0:02:57]} 2. Nf3 {[%clk 0:02:59]}  Nc6 {[%clk 0:02:56]} 3. d4 {[%clk 0:02:59]}  exd4 {[%clk 0:02:50]} 4. Nxd4 {[%clk 0:02:59]}  Bb4+ {[%clk 0:02:50]} 5. Bd2 {[%clk 0:02:56]}  Bc5 {[%clk 0:02:45]} 6. Nf5 {[%clk 0:02:50]}  g6 {[%clk 0:02:42]} 7. Be3 {[%clk 0:02:50]}  Bb6 {[%clk 0:02:36]} 8. Bxb6 {[%clk 0:02:47]}  axb6 {[%clk 0:02:35]} 9. Ne3 {[%clk 0:02:46]}  Nge7 {[%clk 0:02:32]} 10. c4 {[%clk 0:02:45]}  d6 {[%clk 0:02:32]} 11. Nc3 {[%clk 0:02:45]}  O-O {[%clk 0:02:31]} 12. Be2 {[%clk 0:02:45]}  f5 {[%clk 0:02:32]} 13. exf5 {[%clk 0:02:45]}  Nxf5 {[%clk 0:02:31]} 14. Nxf5 {[%clk 0:02:43]}  Bxf5 {[%clk 0:02:32]} 15. O-O {[%clk 0:02:42]}  Qe7 {[%clk 0:02:23]} 16. Bf3 {[%clk 0:02:38]}  Rae8 {[%clk 0:02:17]} 17. Qd2 {[%clk 0:02:31]}  Ne5 {[%clk 0:02:15]} 18. Bxb7 {[%clk 0:02:28]}  c6 {[%clk 0:02:14]} 19. Bxc6 {[%clk 0:02:20]}  Nxc6 {[%clk 0:02:04]} 20. Qd5+ {[%clk 0:02:19]}  Qf7 {[%clk 0:01:46]} 21. Qxc6 {[%clk 0:02:14]}  Bd3 {[%clk 0:01:47]} 22. Rfd1 {[%clk 0:01:36]}  Qxf2+ {[%clk 0:01:43]} 23. Kh1 {[%clk 0:01:37]}  Bf5 {[%clk 0:01:25]} 24. Qxd6 {[%clk 0:01:15]}  Qxb2 {[%clk 0:01:22]} 25. Qd4 {[%clk 0:00:52]}  Bc2 {[%clk 0:01:10]} 26. Re1 {[%clk 0:00:42]}  Rd8 {[%clk 0:01:03]} 27. Qe5 {[%clk 0:00:30]}  Bf5 {[%clk 0:01:01]} 28. Nd5 {[%clk 0:00:24]}  Qxe5 {[%clk 0:00:50]} 29. Rxe5 {[%clk 0:00:25]}  Rd6 {[%clk 0:00:37]} 30. h3 {[%clk 0:00:26]}  Bd3 {[%clk 0:00:33]} 31. Rc1 {[%clk 0:00:22]}  Rf2 {[%clk 0:00:32]} 32. a4 {[%clk 0:00:17]}  Kf7 {[%clk 0:00:31]} 33. Re3 {[%clk 0:00:17]}  Bf5 {[%clk 0:00:29]} 34. Rb3 {[%clk 0:00:12]}  Be4 {[%clk 0:00:26]} 35. Ne3 {[%clk 0:00:11]}  Rdd2 {[%clk 0:00:23]} 36. Kg1 {[%clk 0:00:10]}  Rfe2 {[%clk 0:00:22]} 37. Rf1+ {[%clk 0:00:08]}  Kg7 {[%clk 0:00:22]} 38. Rf4 {[%clk 0:00:06]}  Bxg2 {[%clk 0:00:22]} 39. Rxb6 {[%clk 0:00:03]}  Re1+ {[%clk 0:00:17]} 40. Kh2 {[%clk 0:00:04]}  Be4+ {[%clk 0:00:16]} 41. Kg3 {[%clk 0:00:02]}  Rxe3+ {[%clk 0:00:16]} 42. Kh4 {[%clk 0:00:01]}  Bf5 {[%clk 0:00:14]} 43. Rb7+ {[%clk 0:00:00]}  Kh6 {[%clk 0:00:14]} 0-1


[Site "https://www.chess.com"]

[Event "Titled Tuesday Blitz June 20 Late 2023"]
[White "Sivakumar, Shaaketh"]
[Black "Hajiyev, Kanan"]
[WhiteFideId "30940176"]
[BlackFideId "13404148"]
[WhiteElo "2174"]
[BlackElo "2115"]
[Result "1-0"]
[Round "5"]
[TimeControl "180+2"]
[Date "2023.06.20"]
[WhiteClock "0:02:00"]
[BlackClock "0:01:20"]
[Board "98"]

1. e4 {[%clk 0:03:00]}  c6 {[%clk 0:02:54]} 2. d4 {[%clk 0:02:59]}  d5 {[%clk 0:02:55]} 3. e5 {[%clk 0:02:59]}  a6 {[%clk 0:02:55]} 4. c4 {[%clk 0:02:55]}  Bf5 {[%clk 0:02:54]} 5. Nc3 {[%clk 0:02:55]}  e6 {[%clk 0:02:53]} 6. h4 {[%clk 0:02:52]}  h5 {[%clk 0:02:53]} 7. Bd3 {[%clk 0:02:51]}  Bxd3 {[%clk 0:02:51]} 8. Qxd3 {[%clk 0:02:52]}  Bb4 {[%clk 0:02:44]} 9. a3 {[%clk 0:02:50]}  Bxc3+ {[%clk 0:02:41]} 10. bxc3 {[%clk 0:02:50]}  dxc4 {[%clk 0:02:39]} 11. Qxc4 {[%clk 0:02:51]}  Qd5 {[%clk 0:02:39]} 12. Qxd5 {[%clk 0:02:51]}  cxd5 {[%clk 0:02:39]} 13. Rb1 {[%clk 0:02:40]}  Ra7 {[%clk 0:02:35]} 14. a4 {[%clk 0:02:40]}  Nc6 {[%clk 0:02:31]} 15. Ba3 {[%clk 0:02:39]}  Na5 {[%clk 0:02:16]} 16. Nf3 {[%clk 0:02:11]}  Nc4 {[%clk 0:02:14]} 17. Bc5 {[%clk 0:02:07]}  b6 {[%clk 0:02:14]} 18. Bxb6 {[%clk 0:02:05]}  Rb7 {[%clk 0:02:14]} 19. a5 {[%clk 0:02:06]}  Nxa5 {[%clk 0:02:14]} 20. Ke2 {[%clk 0:02:05]}  Nc4 {[%clk 0:02:08]} 21. Bc5 {[%clk 0:02:05]}  Rd7 {[%clk 0:01:38]} 22. Rb8+ {[%clk 0:02:02]}  Rd8 {[%clk 0:01:39]} 23. Rhb1 {[%clk 0:02:03]}  Ne7 {[%clk 0:01:33]} 24. Bxe7 {[%clk 0:02:00]}  Kxe7 {[%clk 0:01:20]} 25. R1b7+ {[%clk 0:02:00]} 1-0


[Site "https://www.chess.com"]